fUST/lending_fUST_20251231
["ID","MTS","AMOUNT","RATE_DAILY","PERIOD"]
[400100385,1767110831143,-500.0,0.00013699,2]
[400100386,1767110831164,-615.0,0.00013699,2]
[400100387,1767110831184,-1000.0,0.00014247,2]
[400100388,1767110831204,-1500.0,0.00014795,2]
[400100389,1767110831223,-2000.0,0.00015342,2]
[400100390,1767110831241,-2500.0,0.0001589,2]
[400100391,1767110831260,-3000.0,0.00016438,2]
[400100392,1767110831283,-300.0,0.00016766,2]
[400100393,1767110831305,-300.0,0.00016766,2]
[400100394,1767110831328,-300.0,0.00016766,2]
[400100395,1767110831352,-300.0,0.00016766,2]
[400100396,1767110831374,-300.0,0.00016766,2]
[400100397,1767110831398,-300.0,0.00016766,2]
[400100398,1767110831421,-300.0,0.00016766,2]
[400100399,1767110831444,-300.0,0.00016766,2]
[400100400,1767110831466,-300.0,0.00016766,2]
[400100401,1767110831490,-300.0,0.00016766,2]
[400100402,1767110831512,-300.0,0.00016766,2]
[400100403,1767110831534,-300.0,0.00016766,2]
[400100404,1767110831557,-300.0,0.00016766,2]
[400100405,1767110831581,-300.0,0.00016766,2]
[400100406,1767110831606,-300.0,0.00016766,2]
[400100407,1767110831626,-3500.0,0.00016986,2]
[400100408,1767110831647,-500.0,0.00017533,2]
[400100409,1767110831666,-4000.0,0.00017534,2]
[400100410,1767110831686,-500.0,0.00018081,2]
[400100411,1767110831707,-500.0,0.00018081,2]
[400100412,1767110831729,-1199.34,0.00018081,2]
[400100413,1767110831749,-4500.0,0.00018082,2]
[400100414,1767110831773,-600.0,0.00018443,2]
[400100415,1767110831794,-5000.0,0.0001863,2]
[400100416,1767110831812,-5500.0,0.00019178,2]
[400100417,1767110831832,-500.0,0.00019725,2]
[400100418,1767110831852,-152.10007547,0.00019725,2]
[400100419,1767110831875,-1199.34,0.00019725,2]
[400100420,1767110831893,-6000.0,0.00019726,2]
[400100421,1767110831914,-1000.02179043,0.00020274,2]
[400100422,1767110831936,-720.0,0.00020287,2]
[400100423,1767110831957,-500.0,0.00021917,2]
[400100424,1767110831978,-500.0,0.00022191,2]
[400100425,1767110832003,-864.0,0.00022316,10]
[400100426,1767110832023,-480.25142807,0.00022465,2]
[400100427,1767110832044,-1041.66666667,0.0002264,2]
[400100428,1767110832066,-5000.0,0.00023513,2]
[400100429,1767110832086,-225.04063848,0.00024162,2]
[400100430,1767110832106,-297.33386872,0.00024162,2]
[400100431,1767110832127,-545.95918091,0.00024305,2]
[400100432,1767110832260,-177.47513849,0.00024305,2]
[400100433,1767110832286,-424.57493937,0.00024305,2]
[400100434,1767110832307,-225.04063848,0.00024307,9]
[400100435,1767110832327,-225.04063848,0.00024453,17]
[400100436,1767110832349,-1000.0,0.00024547,10]
[400100437,1767110832368,-225.04063848,0.00024598,25]
[400100438,1767110832388,-225.04063848,0.00024743,32]
[400100439,1767110832408,-225.04063848,0.00024889,40]
[400100440,1767110832428,-500.0,0.00024989,2]
[400100441,1767110832449,-1199.34,0.00024989,2]
[400100442,1767110832468,-5866.24257609,0.0002499,2]
[400100443,1767110968101,-1049.42,0.00017533,2]
[400100444,1767110968129,-1918.4892041,0.00018343,2]
[400100445,1767110968156,-1049.42,0.00019177,2]
[400100446,1767110968182,-1918.48920406,0.00021071,2]
[400100447,1767110968210,-500.0,0.00021917,2]
[400100448,1767110968237,-500.0,0.00021917,2]
[400100449,1767110968261,-500.0,0.00021917,2]
[400100450,1767110968283,-500.0,0.00021917,2]
[400100451,1767110968307,-500.0,0.00021917,2]
[400100452,1767110968332,-500.0,0.00021917,2]
[400100453,1767110968358,-385.87,0.00022191,2]
[400100454,1767110968384,-164.44,0.00022191,2]
[400100455,1767110968410,-300.0,0.00022354,10]
[400100456,1767110968437,-26.24043949,0.00022354,10]
[400100482,1767111031902,-371.748,0.00018081,2]
[400100489,1767111031965,-128.252,0.00018081,2]
[400100491,1767111031974,-687.0,0.00018081,2]
[400100493,1767111031984,-500.0,0.00019725,2]
[400100495,1767111031993,-500.0,0.00021917,2]
[400100497,1767111032002,-500.0,0.00022191,2]
[400100499,1767111032011,-273.75956051,0.00022354,10]
[400100501,1767111032020,-300.0,0.00022354,10]
[400100503,1767111032030,-300.0,0.00022354,10]
[400100505,1767111032039,-300.0,0.00022354,10]
[400100507,1767111032048,-300.0,0.00022354,10]
[400100509,1767111032058,-216.64454913,0.00022354,10]
[400100578,1767111038511,-500.0,0.00018081,2]
[400100579,1767111038521,-622.13834853,0.00019725,2]
[400100580,1767111038530,-83.35545087,0.00022354,10]
[400100581,1767111038540,-300.0,0.00022354,10]
[400100582,1767111038549,-300.0,0.00022354,10]
[400100583,1767111038559,-300.0,0.00022354,10]
[400100584,1767111038569,-300.0,0.00022354,10]
[400100585,1767111038578,-300.0,0.00022354,10]
[400100586,1767111038588,-300.0,0.00022354,10]
[400100587,1767111038599,-300.0,0.00022354,10]
[400100588,1767111038609,-300.0,0.00022354,10]
[400100589,1767111038618,-494.32,0.00022465,2]
[400100590,1767111038629,-1041.66666667,0.00022638,2]
[400100591,1767111038638,-200.0,0.00023835,2]
[400100592,1767111038647,-1049.42,0.00024989,2]
[400100593,1767111038657,-1049.42,0.00024989,2]
[400100594,1767111038666,-500.0,0.00024989,2]
[400100595,1767111038676,-19444.4134222,0.0002499,2]
[400100596,1767111038685,-14760.9832722,0.0002499,2]
[400100597,1767111038695,-319.75065315,0.00024998,2]
[400100598,1767111038704,-500.0,0.00024998,2]
[400100599,1767111038714,-162.10737944,0.00024998,2]
[400100600,1767111038723,-500.0,0.00024999,2]
[400100601,1767111038732,-500.0,0.00024999,2]
[400100602,1767111038742,-500.0,0.00024999,2]
[400100603,1767111038752,-500.0,0.00024999,2]
[400100604,1767111038761,-1049.42,0.00024999,2]
[400100605,1767111038771,-1049.42,0.00024999,2]
[400100606,1767111038780,-1049.42,0.00024999,2]
[400100607,1767111038789,-1049.42,0.00024999,2]
[400100608,1767111038799,-500.0,0.00024999,2]
[400100609,1767111038808,-500.0,0.00024999,2]
[400100610,1767111038818,-500.0,0.00024999,2]
[400100611,1767111038827,-500.0,0.00024999,2]
[400100612,1767111038836,-71611.9145789,0.00025,2]
[400100613,1767111038845,-3518.10298453,0.00025,2]
[400100614,1767111038855,-225.04063848,0.00025034,48]
[400100615,1767111038865,-227.976599,0.00025111,2]
[400100616,1767111038875,-19444.4134222,0.00025171,2]
[400100617,1767111038885,-14760.9832722,0.00025171,2]
[400100618,1767111038894,-297.33386872,0.00025179,16]
[400100619,1767111038904,-225.04063848,0.00025179,56]
[400100620,1767111038914,-1049.42,0.00025181,2]
[400100621,1767111038924,-1049.42,0.00025191,2]
[400100622,1767111038933,-19444.4134222,0.00025192,2]
[400100623,1767111038942,-14760.9832722,0.00025192,2]
[400100624,1767111038952,-500.0,0.00025192,2]
[400100625,1767111038961,-500.0,0.00025192,2]
[400100626,1767111038971,-1049.42,0.00025192,2]
[400100627,1767111038980,-1049.42,0.00025192,2]
[400100628,1767111038990,-1049.42,0.00025192,2]
[400100629,1767111038999,-500.0,0.00025192,2]
[400100630,1767111039009,-500.0,0.00025192,2]
[400100631,1767111039018,-38888.8268444,0.00025192,2]
[400100632,1767111039028,-29521.9665445,0.00025192,2]
[400100633,1767111039037,-1049.42,0.000252,2]
[400100634,1767111039047,-500.0,0.00025201,2]
[400100635,1767111039056,-1049.42,0.00025201,2]
[400100636,1767111039066,-1049.42,0.00025201,2]
[400100637,1767111039076,-500.0,0.00025201,2]
[400100638,1767111039086,-500.0,0.00025202,2]
[400100639,1767111039096,-500.0,0.00025202,2]
[400100640,1767111039106,-500.0,0.00025202,2]
[400100641,1767111039118,-500.0,0.00025202,2]
[400100642,1767111039127,-500.0,0.00025202,2]
[400100643,1767111039136,-1049.42,0.00025202,2]
[400100644,1767111039146,-1049.42,0.00025202,2]
[400100645,1767111039157,-1049.42,0.00025202,2]
[400100646,1767111039167,-1049.42,0.00025202,2]
[400100647,1767111039176,-1049.42,0.00025202,2]
[400100648,1767111039187,-1049.42,0.00025202,2]
[400100649,1767111039197,-1049.42,0.00025202,2]
[400100650,1767111039206,-1049.48200227,0.00025202,2]
[400100651,1767111039215,-500.0,0.00025202,2]
[400100652,1767111039224,-500.0,0.00025202,2]
[400100653,1767111039234,-500.0,0.00025202,2]
[400100654,1767111039243,-500.0,0.00025202,2]
[400100655,1767111039252,-500.0,0.00025202,2]
[400100656,1767111039261,-19444.4134222,0.00025202,2]
[400100657,1767111039270,-14760.9832722,0.00025202,2]
[400100658,1767111039280,-151.49639709,0.00025211,2]
[400100659,1767111039289,-500.0,0.00025211,2]
[400100660,1767111039299,-274.08,0.00025211,2]
[400100661,1767111039308,-159.4062721,0.00025213,2]
[400100662,1767111039318,-1493.69950448,0.00025288,9]
[400100663,1767111039327,-225.04063848,0.00025325,63]
[400100664,1767111039337,-168.0,0.00025332,2]
[400100665,1767111039347,-900.0,0.00025469,3]
[400100666,1767111039356,-225.04063848,0.0002547,71]
[400100667,1767111039366,-600.0,0.00025489,10]
[400100668,1767111039375,-270.15,0.000255,7]
[400100669,1767111039385,-1000.0,0.000255,2]
[400100670,1767111039394,-244.11532967,0.00025532,2]
[400100671,1767111039404,-225.04063848,0.00025615,79]
[400100672,1767111039413,-225.04063846,0.00025647,110]
[400100673,1767111039423,-5000.0,0.0002568,2]
[400100674,1767111039432,-168.0,0.00025695,2]
[400100675,1767111039441,-3456.9571867,0.00025733,2]
[400100676,1767111039451,-225.04063848,0.00025761,86]
[400100677,1767111039460,-19444.4134222,0.00025781,2]
[400100678,1767111039469,-14760.9832722,0.00025781,2]
[400100679,1767111039480,-4983.0,0.00025791,2]
[400100680,1767111039489,-1000.0,0.0002587,2]
[400100681,1767111039499,-225.04063848,0.00025906,94]
[400100682,1767111039509,-19444.4134222,0.0002598,2]
[400100683,1767111039518,-14760.9832722,0.0002598,2]
[400100684,1767111039528,-627.8409099,0.00025982,2]
[400100685,1767111039649,-303.3898112,0.00025982,2]
[400100686,1767111039658,-599.6069297,0.00025982,2]
[400100687,1767111039668,-599.6069297,0.00025982,2]
[400100688,1767111039678,-599.6069297,0.00025982,2]
[400100689,1767111039688,-599.6069297,0.00025982,2]
[400100690,1767111039697,-303.3898112,0.00025982,2]
[400100691,1767111039707,-599.6069297,0.00025982,2]
[400100692,1767111039716,-303.3898112,0.00025982,2]
[400100693,1767111039726,-303.3898112,0.00025982,2]
[400100694,1767111039736,-303.3898112,0.00025982,2]
[400100695,1767111039746,-303.3898112,0.00025982,2]
[400100696,1767111039755,-599.6069297,0.00025982,2]
[400100698,1767111039764,-599.6069297,0.00025982,2]
[400100699,1767111039774,-303.3898112,0.00025982,2]
[400100700,1767111039784,-599.6069297,0.00025982,2]
[400100701,1767111039793,-303.3898112,0.00025982,2]
[400100702,1767111039804,-599.6069297,0.00025982,2]
[400100703,1767111039813,-599.6069297,0.00025982,2]
[400100704,1767111039823,-303.3898112,0.00025982,2]
[400100705,1767111039832,-1198.9659118,0.00025982,2]
[400100706,1767111039842,-606.617558,0.00025982,2]
[400100707,1767111039851,-599.6069297,0.00025982,2]
[400100708,1767111039860,-303.3898112,0.00025982,2]
[400100709,1767111039870,-599.6069297,0.00025982,2]
[400100710,1767111039880,-303.3898112,0.00025982,2]
[400100711,1767111039889,-303.3898112,0.00025982,2]
[400100712,1767111039899,-303.3898112,0.00025982,2]
[400100713,1767111039908,-19444.4134222,0.0002599,2]
[400100714,1767111039918,-14760.9832722,0.0002599,2]
[400100715,1767111039928,-1048.920347,0.0002599,7]
[400100716,1767111039938,-1048.920347,0.0002599,7]
[400100717,1767111039947,-1048.920347,0.0002599,7]
[400100718,1767111039957,-1048.920347,0.0002599,7]
[400100719,1767111039966,-151.0,0.0002599,7]
[400100720,1767111039975,-39742.13262439,0.00026,10]
[400100721,1767111039985,-529.2410511,0.00026,2]
[400100722,1767111039995,-19489.81,0.00026,2]
[400100723,1767111040004,-161.0,0.00026,5]
[400100724,1767111040013,-250.0,0.00026,2]
[400100725,1767111040022,-151.0,0.00026,7]
[400100726,1767111040032,-151.0,0.00026,7]
[400100727,1767111040042,-151.0,0.00026,7]
[400100728,1767111040051,-151.0,0.00026,7]
[400100729,1767111040060,-151.0,0.00026,7]
[400100730,1767111040070,-225.04063848,0.00026051,102]
[400100732,1767111040079,-150.0,0.00026096,2]
[400100734,1767111040089,-150.0,0.00026096,2]
[400100736,1767111040099,-150.0,0.00026096,2]
[400100738,1767111040113,-150.0,0.00026096,2]
[400100740,1767111040124,-152.94870132,0.00026127,2]
[400100742,1767111040133,-250.0,0.00026127,2]
[400100744,1767111040142,-496.47127164,0.00026127,2]
[400100746,1767111040151,-250.0,0.00026127,2]
[400100748,1767111040160,-250.0,0.00026127,2]
[400100750,1767111040169,-257.40548047,0.00026127,2]
[400100752,1767111040178,-2398.4119403,0.00026127,2]
[400100754,1767111040188,-151.0,0.00026127,2]
[400100756,1767111040197,-151.0,0.00026127,2]
[400100758,1767111040206,-151.0,0.00026127,2]
[400100759,1767111040215,-151.0,0.00026127,2]
[400100761,1767111040225,-151.0,0.00026127,2]
[400100763,1767111040235,-151.0,0.00026127,2]
[400100765,1767111040244,-151.0,0.00026127,2]
[400100767,1767111040254,-151.0,0.00026127,2]
[400100769,1767111040263,-151.0,0.00026127,2]
[400100771,1767111040273,-151.0,0.00026127,2]
[400100773,1767111040282,-151.0,0.00026127,2]
[400100775,1767111040293,-151.0,0.00026127,2]
[400100777,1767111040305,-151.0,0.00026127,2]
[400100778,1767111040314,-151.0,0.00026127,2]
[400100779,1767111040325,-151.0,0.00026127,2]
[400100780,1767111040335,-19444.4134222,0.00026134,2]
[400100781,1767111040345,-14760.9832722,0.00026134,2]
[400100782,1767111040358,-4983.0,0.00026164,2]
[400100783,1767111040367,-297.33386872,0.00026197,30]
[400100784,1767111040376,-4473.0,0.00026247,2]
[400100785,1767111040386,-4983.0,0.00026448,7]
[400100786,1767111040395,-201.993,0.0002652,2]
[400100787,1767111040405,-251.305,0.0002652,2]
[400100788,1767111040414,-150.0,0.0002652,2]
[400100789,1767111040423,-150.49,0.0002652,2]
[400100790,1767111040433,-250.0,0.0002652,2]
[400100791,1767111040442,-1364.0,0.0002652,2]
[400100792,1767111040452,-2156.0,0.0002652,2]
[400100793,1767111040462,-627.0,0.0002652,2]
[400100794,1767111040471,-514.84070869,0.00026675,2]
[400100795,1767111040481,-2487.15318209,0.00026675,2]
[400100796,1767111040490,-419.424098,0.00026676,2]
[400100797,1767111040500,-1048.920347,0.00026784,7]
[400100798,1767111040509,-1048.920347,0.00026784,7]
[400100799,1767111040519,-1048.920347,0.00026784,7]
[400100800,1767111040528,-1048.920347,0.00026784,7]
[400100801,1767111040538,-151.0,0.00026784,7]
[400100802,1767111040547,-19444.4134222,0.00026785,2]
[400100803,1767111040557,-14760.9832722,0.00026785,2]
[400100804,1767111040566,-759.3645173,0.00026804,2]
[400100805,1767111040575,-600.0,0.00026879,2]
[400100806,1767111040585,-1911.02547029,0.00026888,2]
[400100807,1767111040595,-206.706,0.00026888,14]
[400100808,1767111040605,-1033.14961331,0.00026888,2]
[400100809,1767111040614,-5888.0,0.00026906,2]
[400100810,1767111040624,-168.0,0.0002694,2]
[400100811,1767111040634,-168.0,0.00026947,2]
[400100812,1767111040643,-168.0,0.00026954,2]
[400100813,1767111040653,-168.0,0.00027011,2]
[400100814,1767111040662,-4983.0,0.00027067,2]
[400100815,1767111040671,-5888.0,0.0002712,2]
[400100816,1767111040682,-600.0,0.00027159,2]
[400100817,1767111040692,-19444.4134222,0.00027213,2]
[400100818,1767111040701,-14760.9832722,0.00027213,2]
[400100819,1767111040711,-151.0,0.00027223,7]
[400100820,1767111040720,-151.0,0.00027223,7]
[400100821,1767111040730,-151.0,0.00027223,7]
[400100822,1767111040739,-533.88981491,0.00027223,2]
[400100823,1767111040749,-562.61021307,0.00027223,2]
[400100824,1767111040759,-227.97659899,0.00027258,2]
[400100825,1767111040769,-185.35259799,0.00027357,7]
[400100826,1767111040778,-568.73029361,0.0002739,7]
[400100827,1767111040787,-150.0,0.0002739,2]
[400100828,1767111040799,-254.98888,0.00027397,7]
[400100829,1767111040808,-151.0,0.00027397,7]
[400100830,1767111040818,-151.0,0.00027397,7]
[400100831,1767111040827,-151.0,0.00027397,7]
[400100832,1767111040837,-264.111661,0.00027397,7]
[400100833,1767111040846,-151.0,0.00027397,7]
[400100834,1767111040856,-151.0,0.00027397,7]
[400100835,1767111040865,-151.0,0.00027397,7]
[400100836,1767111040875,-151.0,0.00027397,7]
[400100837,1767111040884,-151.0,0.00027397,7]
[400100838,1767111040899,-151.0,0.00027397,7]
[400100839,1767111040913,-151.0,0.00027397,7]
[400100840,1767111040922,-151.0,0.00027397,7]
[400100841,1767111040931,-151.0,0.00027397,7]
[400100842,1767111040941,-151.0,0.00027397,7]
[400100843,1767111040951,-151.0,0.00027397,7]
[400100844,1767111040960,-161.480743,0.00027397,7]
[400100845,1767111040969,-151.0,0.00027397,7]
[400100846,1767111040978,-151.0,0.00027397,7]
[400100847,1767111040987,-184.789263,0.00027397,7]
[400100848,1767111040996,-151.0,0.00027397,7]
[400100849,1767111041005,-151.0,0.00027397,7]
[400100850,1767111041015,-151.0,0.00027397,7]
[400100851,1767111041024,-151.0,0.00027397,7]
[400100852,1767111041033,-151.0,0.00027397,7]
[400100853,1767111041042,-151.0,0.00027397,7]
[400100854,1767111041051,-151.0,0.00027397,7]
[400100855,1767111041060,-163.367895,0.00027397,7]
[400100856,1767111041070,-151.0,0.00027397,7]
[400100857,1767111041078,-151.0,0.00027397,7]
[400100858,1767111041087,-151.0,0.00027397,7]
[400100859,1767111041096,-151.0,0.00027397,7]
[400100860,1767111041107,-151.0,0.00027397,7]
[400100861,1767111041118,-151.0,0.00027397,7]
[400100862,1767111041130,-151.0,0.00027397,7]
[400100863,1767111041140,-151.0,0.00027397,7]
[400100864,1767111041150,-151.0,0.00027397,7]
[400100865,1767111041159,-151.0,0.00027397,7]
[400100866,1767111041169,-151.0,0.00027397,7]
[400100867,1767111041178,-151.0,0.00027397,7]
[400100868,1767111041188,-151.0,0.00027397,7]
[400100869,1767111041198,-151.0,0.00027397,7]
[400100870,1767111041207,-151.0,0.00027397,7]
[400100871,1767111041216,-151.0,0.00027397,7]
[400100872,1767111041225,-151.0,0.00027397,7]
[400100873,1767111041234,-151.0,0.00027397,7]
[400100874,1767111041243,-151.0,0.00027397,7]
[400100875,1767111041252,-151.0,0.00027397,7]
[400100876,1767111041261,-151.0,0.00027397,7]
[400100877,1767111041270,-151.0,0.00027397,7]
[400100878,1767111041279,-151.0,0.00027397,7]
[400100879,1767111041288,-151.0,0.00027397,7]
[400100880,1767111041297,-151.0,0.00027397,7]
[400100881,1767111041307,-151.0,0.00027397,7]
[400100882,1767111041316,-279.781058,0.00027397,7]
[400100883,1767111041325,-151.0,0.00027397,7]
[400100884,1767111041334,-151.0,0.00027397,7]
[400100885,1767111041343,-255.40502,0.00027397,7]
[400100886,1767111041352,-151.0,0.00027397,7]
[400100887,1767111041362,-151.0,0.00027397,7]
[400100888,1767111041370,-153.87358,0.00027397,7]
[400100889,1767111041379,-151.0,0.00027397,7]
[400100890,1767111041389,-150.0,0.00027397,5]
[400100891,1767111041398,-600.0,0.00027439,2]
[400100892,1767111041407,-168.0,0.00027454,2]
[400100893,1767111041416,-168.0,0.0002749,2]
[400100894,1767111041425,-408.0,0.000275,2]
[400100895,1767111041435,-185.35259798,0.00027518,7]
[400100896,1767111041444,-172.20826889,0.00027577,7]
[400100897,1767111041456,-168.0,0.00027608,2]
[400100898,1767111041465,-1000.0,0.0002768,5]
[400100899,1767111041475,-150.0,0.000277,2]
[400100900,1767111041485,-150.0,0.000277,2]
[400100901,1767111041494,-1000.0,0.000277,5]
[400100902,1767111041505,-616.400321,0.000277,2]
[400100903,1767111041514,-250.0,0.000277,10]
[400100904,1767111041524,-198.417892,0.000277,2]
[400100905,1767111041533,-600.0,0.00027719,2]
[400100906,1767111041543,-217720.13949581,0.0002772,2]
[400100907,1767111041571,-130483.19878745,0.0002772,2]
[400100908,1767111041581,-923.01,0.0002772,2]
[400101040,1767111046621,-303.3898112,0.00025982,2]
[400101042,1767111046630,-151.0,0.00027397,7]
[400101043,1767111046640,-151.0,0.00027397,7]
[400101045,1767111046649,-7302.74451294,0.0002772,2]
[400101131,1767111398270,330.0053,0.00028767,120]
[400101132,1767111401846,400.0,0.000274,120]
[400101133,1767111756128,150.0,0.00028767,120]
[400101138,1767111910165,240.65654592,0.00025434,120]
[400101143,1767112012104,-180.22718291,0.00013273,2]
[400101144,1767112026081,-319.77281709,0.00013273,2]
[400101145,1767112026105,-150.0,0.00013273,2]
[400101146,1767112026126,-608.0,0.00013273,2]
[400101147,1767112026147,-177.0,0.00015273,2]
[400101148,1767112026169,-204.0,0.00017273,2]
[400101149,1767112026189,-231.0,0.00019273,2]
[400101150,1767112026210,-189.0,0.00021273,2]
[400101151,1767112026231,-500.0,0.00022321,2]
[400101152,1767112026252,-921.34932773,0.00022881,2]
[400101153,1767112026276,-5000.0,0.00023513,2]
[400101154,1767112026301,-300.0,0.00023982,10]
[400101155,1767112026327,-300.0,0.00023982,10]
[400101156,1767112026352,-300.0,0.00023982,10]
[400101157,1767112026377,-300.0,0.00023982,10]
[400101158,1767112026401,-300.0,0.00023982,10]
[400101159,1767112026425,-300.0,0.00023982,10]
[400101160,1767112026452,-300.0,0.00023982,10]
[400101161,1767112026476,-300.0,0.00023982,10]
[400101162,1767112026501,-300.0,0.00023982,10]
[400101163,1767112026524,-300.0,0.00023982,10]
[400101164,1767112026547,-300.0,0.00023982,10]
[400101165,1767112026572,-300.0,0.00023982,10]
[400101166,1767112026596,-300.0,0.00023982,10]
[400101167,1767112026621,-300.0,0.00023982,10]
[400101168,1767112026645,-300.0,0.00023982,10]
[400101169,1767112026667,-240.65654593,0.00024162,2]
[400101170,1767112026690,-240.65654593,0.00024453,17]
[400101171,1767112026716,-600.0,0.00024461,10]
[400101172,1767112026737,-150.0,0.00024605,2]
[400101173,1767112026758,-150.0,0.00024605,2]
[400101174,1767112026778,-150.0,0.00024605,2]
[400101175,1767112026799,-1995.10419963,0.000247,2]
[400101176,1767112026820,-240.65654593,0.00024743,32]
[400101177,1767112026842,-523.52984225,0.00024788,2]
[400101178,1767112026863,-523.52984222,0.00024791,2]
[400101179,1767112026884,-523.52984222,0.00024794,2]
[400101180,1767112026905,-523.52984222,0.00024797,2]
[400101181,1767112026926,-500.0,0.00024798,2]
[400101182,1767112026949,-188.48969309,0.00024798,2]
[400101183,1767112026972,-500.0,0.00024799,2]
[400101184,1767112026994,-500.0,0.00024799,2]
[400101185,1767112027015,-500.0,0.00024799,2]
[400101186,1767112027037,-1016.38,0.00024799,2]
[400101187,1767112027058,-500.0,0.00024799,2]
[400101188,1767112027079,-500.0,0.00024799,2]
[400101189,1767112027099,-358.91155981,0.000248,2]
[400101190,1767112027119,-12376.03918572,0.000248,2]
[400101191,1767112027139,-523.52984222,0.000248,2]
[400101192,1767112027160,-1041.66666667,0.00024834,2]
[400101193,1767112027179,-206.706,0.00024858,8]
[400101194,1767112027201,-500.0,0.00024864,2]
[400101195,1767112027223,-319.75065315,0.00024864,2]
[400101196,1767112027243,-162.10737944,0.00024864,2]
[400101197,1767112027268,-694.84776404,0.00024864,2]
[400101198,1767112027289,-2298.1254164,0.00024864,2]
[400101199,1767112027310,-2298.1254164,0.00024864,2]
[400101200,1767112027331,-2298.1254164,0.00024864,2]
[400101201,1767112027351,-2298.1254164,0.00024864,2]
[400101202,1767112027370,-2298.1254164,0.00024864,2]
[400101203,1767112027389,-2298.1254164,0.00024864,2]
[400101204,1767112027408,-2298.1254164,0.00024864,2]
[400101205,1767112027429,-2298.1254164,0.00024864,2]
[400101206,1767112027451,-2298.1254164,0.00024864,2]
[400101207,1767112027472,-2298.1254164,0.00024864,2]
[400101208,1767112027492,-2298.1254164,0.00024864,2]
[400101209,1767112027512,-2298.1254164,0.00024864,2]
[400101210,1767112027533,-2298.1254164,0.00024864,2]
[400101211,1767112027553,-2298.1254164,0.00024864,2]
[400101212,1767112027574,-2298.1254164,0.00024864,2]
[400101213,1767112027594,-2298.1254164,0.00024864,2]
[400101214,1767112027614,-2298.1254164,0.00024864,2]
[400101215,1767112027632,-2298.1254164,0.00024864,2]
[400101216,1767112027652,-2298.1254164,0.00024864,2]
[400101217,1767112027673,-2298.1254164,0.00024864,2]
[400101218,1767112027694,-2298.1254164,0.00024864,2]
[400101219,1767112027716,-2298.1254164,0.00024864,2]
[400101220,1767112027737,-25.70329159,0.00024864,2]
[400101292,1767112238615,-1200.0,0.00024599,2]
[400101293,1767112238629,-19732.32,0.000246,3]
[400101294,1767112238641,-1041.66666667,0.00024647,2]
[400101295,1767112238654,-7633.31065861,0.0002465,2]
[400101296,1767112238666,-812.0,0.0002465,2]
[400101297,1767112238678,-323.02040382,0.00024698,2]
[400101298,1767112238690,-463.47516561,0.00024698,2]
[400101299,1767112238703,-223.8254572,0.00024698,2]
[400101300,1767112238715,-687.8992864,0.00024698,2]
[400101301,1767112238727,-1792.28079187,0.00024698,2]
[400101302,1767112238739,-1792.28079187,0.00024698,2]
[400101303,1767112238751,-1792.28079187,0.00024698,2]
[400101304,1767112238762,-1792.28079187,0.00024698,2]
[400101305,1767112238774,-1792.28079187,0.00024698,2]
[400101306,1767112238784,-1792.28079187,0.00024698,2]
[400101307,1767112238795,-1792.28079187,0.00024698,2]
[400101308,1767112238806,-1792.28079187,0.00024698,2]
[400101309,1767112238818,-1792.28079187,0.00024698,2]
[400101310,1767112238835,-1792.28079187,0.00024698,2]
[400101311,1767112238848,-1792.28079187,0.00024698,2]
[400101312,1767112238860,-1792.28079187,0.00024698,2]
[400101313,1767112238874,-1792.28079187,0.00024698,2]
[400101314,1767112238886,-1792.28079187,0.00024698,2]